Cogmind - Beta 15 @@@ ROGUE MODE // 2025.08.16 @ 19:41:58 Player: JuustuToug Result: Destroyed by G-47 Trooper with Particle Gun Performance ------------- Evolutions (2) 1000 Regions Visited (5) 1000 Robots Destroyed (51) 255 Value Destroyed (1414) 1414 Prototype IDs (9) 180 Alien Tech Used (0) 0 Bonus (-45) -45 TOTAL SCORE: 3804 Bonus ------- High Alert Combat Kills 11 Follower Combat Kills 25 Friendly Fire -81 Cogmind --------- Core Integrity 0/550 Matter 276/300 Energy 160/160 System Corruption 0% Temperature Cool (9) Movement Walking (120) Location -8/Materials Parts ------- > --- POWER (1) -------- Light Nuclear Core > --- PROPULSION (4) --- Aluminum Leg Aluminum Leg Aluminum Leg Aluminum Leg > --- UTILITY (4) ------ Improved Heat Sink Medium Storage Unit Improved Light Armor Plating High-powered Tractor Beam > --- WEAPON (2) ------- Enhanced Autogun Enhanced Autogun > --- INVENTORY (10) --- Improved Ion Engine Aluminum Leg Improved Heat Sink Improved Sensor Array Transmission Jammer Light Armor Plating Hardlight Generator Plasma Cannon High-powered Shotgun Advanced EMP Blaster Peak State ------------ > --- POWER ------------ Reinforced Deuterium Engine > --- PROPULSION ------- Armored Treads Armored Treads Advanced Treads Aluminum Leg > --- UTILITY ---------- Improved Heat Sink Medium Storage Unit Improved Light Armor Plating High-powered Tractor Beam > --- WEAPON ----------- Heavy Assault Rifle Minigun > --- INVENTORY -------- Improved Ion Engine Improved Heat Sink Improved Sensor Array Transmission Jammer Improved Light Armor Plating High-powered Tractor Beam Plasma Cannon Plasma Cannon High-powered Shotgun Advanced EMP Blaster [Rating: 32] Favorites ----------- Power Ion Engine Engine Ion Engine Power Core Nuclear Core Propulsion Aluminum Leg Treads Armored Treads Leg Aluminum Leg Flight Unit Flight Unit Utility Small Storage Unit Device Terrain Scanner Storage Small Storage Unit Protection Improved Light Armor Plating Weapon Assault Rifle Energy Gun Pulse Rifle Ballistic Gun Assault Rifle Ballistic Cannon Heavy Assault Cannon Launcher Rocket Launcher Build | -11 -10 -10 -10 -9 -8 ------- Run | Yrd Mat Min Exi Min Mat Slots Evolved 4 | . . . . . 4 Power . | . . . . . . Propulsion 2 | . . . . . 2 Utility 2 | . . . . . 2 Weapon . | . . . . . . Parts Attached 60 | 6 1 . . 3 50 Power 8 | 1 . . . 1 6 Engine 6 | 1 . . . 1 4 Core 2 | . . . . . 2 Reactor . | . . . . . . Propulsion 17 | 2 . . . . 15 Treads 4 | . . . . . 4 Leg 11 | 2 . . . . 9 Wheel . | . . . . . . Hover . | . . . . . . Flight 2 | . . . . . 2 Utility 16 | 1 1 . . 1 13 Device 10 | . 1 . . 1 8 Storage 3 | 1 . . . . 2 Processor . | . . . . . . Hackware . | . . . . . . Protection 3 | . . . . . 3 Artifact . | . . . . . . Weapon 19 | 2 . . . 1 16 Energy Gun 7 | . . . . . 7 Energy Cannon . | . . . . . . Ballistic Gun 9 | 2 . . . 1 6 Ballistic Cannon 1 | . . . . . 1 Launcher 2 | . . . . . 2 Special Weapon . | . . . . . . Impact Weapon . | . . . . . . Slashing Weapon . | . . . . . . Piercing Weapon . | . . . . . . Special Melee Weapon . | . . . . . . Unidentified Prototypes 5 | . . . . . 5 Parts Lost 18 | . . . . . 18 Power 1 | . . . . . 1 Propulsion 6 | . . . . . 6 Utility 6 | . . . . . 6 Weapon 5 | . . . . . 5 Highest Loss Streak 5 | . . . . . 5 To Critical Strikes . | . . . . . . Average Backups 6 | 1 2 5 7 6 8 Power 1 | . 1 1 1 1 1 Propulsion . | . . . 1 1 . Utility 2 | . . 1 2 1 4 Weapon 2 | . 1 2 3 2 2 Tool/Special . | . . . . . . Unused Backups 14 | . . 1 . 2 11 Power 1 | . . . . . 1 Propulsion . | . . . . . . Utility 7 | . . 1 . . 6 Weapon 6 | . . . . 2 4 Tool/Special . | . . . . . . Average Slot Usage (%) 90 | . 95 99 100 100 82 Engine 8 | . 14 14 14 14 4 Core 2 | . . . . . 4 Treads 5 | . . . . . 9 Leg 21 | . 28 28 28 28 14 Device 15 | . 9 14 14 14 16 Storage 11 | . 14 13 14 14 9 Protection 2 | . . . . . 4 Energy Gun 2 | . . . . . 5 Ballistic Gun 19 | . 28 28 28 28 10 Peak Build Rating 32 | 6 7 8 8 8 32 Average Rating 15 | 3 6 7 8 8 23 On Entrance 6 | . 6 7 8 8 8 Naked Turns . | . . . . . . Heaviest Build 48 | 14 15 15 15 15 48 Greatest Support 82 | 20 20 20 20 20 82 Greatest Overweight (x) 4 | 3 . . . . 4 Average Overweight (x) . | . . . . . . Largest Inventory Capacity 10 | 8 8 8 8 8 10 Average Capacity 8 | 7 8 7 8 8 8 Most Carried 10 | 5 3 8 8 8 10 Average Carried 7 | 2 2 5 8 7 8 Final Capacity 10 | 8 8 8 8 8 10 Final Carried 10 | 2 2 8 8 8 10 Class Distribution -------------------- 71% | Mutant 28% | Scavenger-Mutant Dominant Class ---------------- Mutant | -10/Materials Mutant | -10/Mines Mutant | -10/Exiles Mutant | -9/Mines Scavenger-Mutant | -8/Materials Resources | -11 -10 -10 -10 -9 -8 ----------- Run | Yrd Mat Min Exi Min Mat Matter Collected 1708 | 228 . 172 . 51 1257 Remotely 606 | . . . . . 606 Salvage Created 1892 | . . 127 . 97 1668 Parts 110 | . . 3 . 5 102 Haulers Intercepted 4 | . . . . . 4 Recyclers Shooed . | . . . . . . Parts Field Recycled . | . . . . . . Retrieved Matter . | . . . . . . Parts Self-Destructed . | . . . . . . Prevented . | . . . . . . Kills | -11 -10 -10 -10 -9 -8 ------- Run | Yrd Mat Min Exi Min Mat Combat Hostiles Destroyed 39 | . . 3 . 3 33 Guns 33 | . . 3 . 3 27 Cannons 5 | . . . . . 5 AOE 1 | . . . . . 1 Classes Destroyed 12 | . . 2 . 1 9 Worker 3 | . . . . . 3 Builder 1 | . . . . . 1 Tunneler 1 | . . . . . 1 Hauler 4 | . . . . . 4 Recycler 1 | . . . . . 1 Watcher 2 | . . . . . 2 Swarmer 14 | . . 2 . 1 11 Grunt 16 | . . 1 . 1 14 Brawler 2 | . . . . 1 1 Sentry 5 | . . . . . 5 Hunter 1 | . . . . . 1 Heavy 1 | . . . . . 1 Best Kill Streak 8 | . . 2 . 2 8 Combat Bots Only 5 | . . 2 . 2 5 Max Kills in Single Turn 2 | . . 1 . 1 2 Gunslinging 1 | . . . . . 1 Exploded 1 | . . . . . 1 Melee . | . . . . . . Uniques/NPCs Destroyed . | . . . . . . Combat | -11 -10 -10 -10 -9 -8 -------- Run | Yrd Mat Min Exi Min Mat Hostile Shots Fired 361 | . . 25 . 17 319 Missed 83 | . . 6 . 7 70 Hits 278 | . . 19 . 10 249 Melee 2 | . . . . 2 . Projectile 276 | . . 19 . 8 249 AOE 1 | . . . . 1 . Critical Strikes 17 | . . 1 . 1 15 Damage Taken 4356 | . . 185 . 149 4022 Core 637 | . . 77 . 10 550 Absorbed by Shields 52 | . . . . . 52 Regen/Repaired (Parts) 22 | . . . . . 22 Core Remaining (%) 82 | 100 . . . 65 . Volleys Fired 169 | . . 20 . 9 140 Largest 2 | . . 2 . 2 2 Hottest 91 | . . 40 . 40 91 Shots Fired 288 | . . 40 . 18 230 Gun 274 | . . 40 . 18 216 Cannon 9 | . . . . . 9 Launcher 5 | . . . . . 5 Special . | . . . . . . Kinetic 241 | . . 40 . 18 183 Thermal 42 | . . . . . 42 Explosive 5 | . . . . . 5 Electromagnetic . | . . . . . . Robot Hit Streak 11 | . . 6 . 4 11 Robot Miss Streak 7 | . . 5 . 4 7 Penetration Max . | . . . . . . Secondary Targets 4 | . . . . . 4 Max Gunslinging Chain 1 | . . . . . 1 Shots Hit Robots 170 | . . 19 . 9 142 Core Hits 81 | . . 7 . 5 69 Critical Kills 2 | . . . . . 2 Critical Parts Destroyed . | . . . . . . Critical Strikes 8 | . . . . . 8 Burn 6 | . . . . . 6 Destroy 2 | . . . . . 2 Melee Attacks . | . . . . . . Impact . | . . . . . . Slashing . | . . . . . . Piercing . | . . . . . . Sneak Attacks . | . . . . . . Combat Hostiles . | . . . . . . Follow-up Attacks . | . . . . . . Damage Inflicted 3519 | . . 320 . 116 3083 Guns 2839 | . . 320 . 116 2403 Cannons 412 | . . . . . 412 Explosions 262 | . . . . . 262 Melee . | . . . . . . Ramming 6 | . . . . . 6 Kinetic 2855 | . . 320 . 116 2419 Thermal 396 | . . . . . 396 Explosive 262 | . . . . . 262 Electromagnetic . | . . . . . . Impact . | . . . . . . Slashing . | . . . . . . Piercing . | . . . . . . Highest Corruption . | . . . . . . Average Corruption . | . . . . . . Corruption Purged . | . . . . . . Corruption Blocked . | . . . . . . Overload Shots . | . . . . . . Overflow Damage 40 | . . . . . 40 Projectiles 17 | . . . . . 17 Explosions 23 | . . . . . 23 Melee . | . . . . . . Knockbacks . | . . . . . . Impact . | . . . . . . Kinetic . | . . . . . . Secondary . | . . . . . . Self-Inflicted Damage . | . . . . . . Shots . | . . . . . . Rammed . | . . . . . . Targets Rammed 1 | . . . . . 1 Kicked 1 | . . . . . 1 Crushed . | . . . . . . Highest Temperature 401 | . . 2 . . 401 Average Temperature 95 | . . 2 . . 97 Received Heat Transfer 1870 | . . 45 . 42 1783 Siege Activations . | . . . . . . Martial Activations . | . . . . . . Shielding Activations . | . . . . . . Robots Disrupted . | . . . . . . Combat Hostiles . | . . . . . . Robots Corrupted . | . . . . . . Combat Hostiles . | . . . . . . Parts Fried . | . . . . . . Impact Corruptions . | . . . . . . Robots Melted . | . . . . . . Combat Hostiles . | . . . . . . Parts Melted 2 | . . 1 . . 1 Heat Transferred 1406 | . . . . . 1406 Parts Sabotaged . | . . . . . . Parts Stolen . | . . . . . . Parts Stripped . | . . . . . . Power Chain Reactions . | . . . . . . Alert | -11 -10 -10 -10 -9 -8 ------- Run | Yrd Mat Min Exi Min Mat Maximum Alert Level 2 | . . . . . 2 Low Security (%) 91 | 100 100 100 . 100 84 Level 1 7 | . . . . . 13 Level 2 1 | . . . . . 1 Level 3 . | . . . . . . Level 4 . | . . . . . . Level 5 . | . . . . . . High Security . | . . . . . . Max Security . | . . . . . . Peak Influence 402 | . . 108 . 40 402 Initial . | . . . . . . Average 68 | . . 23 . 12 105 Influence Increases 1319 | . . 141 . 145 1033 Destroy 0b10 Robot/C 800 | . . 80 . 60 660 Destroy 0b10 Robot/NC 65 | . . 5 . . 60 Destroy Leader 202 | . . 20 . 10 172 Allied During Kill 6 | . . 6 . . . Successful Hack 6 | . . . . . 6 Disable Machine 60 | . . 15 . . 45 Destroy Structure 30 | . . . . . 30 Lose Combat Pursuer 150 | . . 15 . 75 60 Influence Decreases 1078 | . . 141 . 145 792 Time Decay 683 | . . 141 . 145 397 Lost Part 144 | . . . . . 144 Purge Threat 251 | . . . . . 251 Squads Dispatched 8 | . . . . . 8 Investigation 3 | . . . . . 3 Extermination . | . . . . . . Reinforcement 1 | . . . . . 1 Assault . | . . . . . . Garrison 4 | . . . . . 4 Intercept . | . . . . . . Searches Triggered . | . . . . . . Construction Impeded . | . . . . . . Haulers Reinforced . | . . . . . . Active Scanning Responses . | . . . . . . Cargo Convoy Interrupts . | . . . . . . Stealth | -11 -10 -10 -10 -9 -8 --------- Run | Yrd Mat Min Exi Min Mat Distress Signals 1 | . . . . . 1 Communications Jammed . | . . . . . . Distress Signals . | . . . . . . Times Spotted 60 | . . 5 . 9 46 Peak Tracking Total 6 | . . 3 . 3 6 Tactical Retreats 6 | . . 1 . 3 2 Traps | -11 -10 -10 -10 -9 -8 ------- Run | Yrd Mat Min Exi Min Mat Traps Triggered 1 | . . . . . 1 Indirectly . | . . . . . . Trap Hack Attempts . | . . . . . . Triggered . | . . . . . . Disarmed . | . . . . . . Reprogrammed . | . . . . . . Reused . | . . . . . . Traps Extracted . | . . . . . . Installed . | . . . . . . Triggered . | . . . . . . Machines | -11 -10 -10 -10 -9 -8 ---------- Run | Yrd Mat Min Exi Min Mat Machines Disabled 4 | . . 1 . . 3 Max in Single Turn 1 | . . . . . 1 Machines Repaired . | . . . . . . Machines Dismantled . | . . . . . . Machines Sabotaged . | . . . . . . Overloaded Fab Kills . | . . . . . . Hacking | -11 -10 -10 -10 -9 -8 --------- Run | Yrd Mat Min Exi Min Mat Machines Accessed 9 | . 2 . . . 7 Terminals 7 | . 2 . . . 5 Fabricators . | . . . . . . Repair Stations . | . . . . . . Recycling Units 1 | . . . . . 1 Scanalyzers 1 | . . . . . 1 Garrison Access . | . . . . . . Total Hacks 27 | . 6 . . . 21 Successful 16 | . 3 . . . 13 Failed 11 | . 3 . . . 8 Catastrophic 3 | . 1 . . . 2 Database Lockouts . | . . . . . . Manual 6 | . 1 . . . 5 Terminals 17 | . 6 . . . 11 Fabricators . | . . . . . . Repair Stations . | . . . . . . Recycling Units 3 | . . . . . 3 Scanalyzers 7 | . . . . . 7 Garrison Access . | . . . . . . Terminal Hacks 9 | . 3 . . . 6 Prototype ID Bank 2 | . 2 . . . . Alert Level 1 | . . . . . 1 Unreport Threat 2 | . . . . . 2 Locate Traps 1 | . . . . . 1 Hauler Manifests 1 | . . . . . 1 Zone Layout 2 | . 1 . . . 1 Fabricator Hacks . | . . . . . . Repair Station Hacks . | . . . . . . Recycling Unit Hacks 2 | . . . . . 2 Report Inventory 1 | . . . . . 1 Retrieve Components 1 | . . . . . 1 Scanalyzer 5 | . . . . . 5 Insert Component 2 | . . . . . 2 Analyze 3 | . . . . . 3 Garrison Access Hacks . | . . . . . . Unauthorized Hacks . | . . . . . . Terminals . | . . . . . . Fabricators . | . . . . . . Repair Stations . | . . . . . . Recycling Units . | . . . . . . Scanalyzers . | . . . . . . Garrison Access . | . . . . . . Data Cores Recovered . | . . . . . . Used . | . . . . . . Hacking Detections 7 | . 2 . . . 5 Full Trace Events 2 | . . . . . 2 Feedback Events . | . . . . . . Feedback Blocked . | . . . . . . Robot Schematics Acquired . | . . . . . . Robots Built . | . . . . . . Authchips . | . . . . . . Time . | . . . . . . Total Robot Build Rating . | . . . . . . Part Schematics Acquired 2 | . . . . . 2 Parts Built . | . . . . . . Authchips . | . . . . . . Time . | . . . . . . Total Part Build Rating . | . . . . . . Parts Repaired . | . . . . . . Time . | . . . . . . Parts Recycled . | . . . . . . Recycled Matter . | . . . . . . Retrieved Matter . | . . . . . . Retrieved Components 9 | . . . . . 9 Parts Scanalyzed 2 | . . . . . 2 Part Schematics Acquired 2 | . . . . . 2 Parts Damaged . | . . . . . . Bothacking | -11 -10 -10 -10 -9 -8 ------------ Run | Yrd Mat Min Exi Min Mat Used RIF Installer . | . . . . . . Robots Hacked . | . . . . . . Non-combat . | . . . . . . Combat . | . . . . . . Robot Hacks Applied . | . . . . . . Relay Couplers Released . | . . . . . . Fabnet Peak Effective % . | . . . . . . Robots Rewired . | . . . . . . Allies Hacked . | . . . . . . Hacks Repelled . | . . . . . . Allies | -11 -10 -10 -10 -9 -8 -------- Run | Yrd Mat Min Exi Min Mat Total Allies 2 | . . 2 . . . Largest Group 2 | . . 2 2 . . Highest-Rated Group 45 | . . 45 45 . . Highest-Rated Ally 31 | . . 31 31 . . Total Orders . | . . . . . . Ally Attacks 10 | . . 10 . . . Total Damage 146 | . . 146 . . . Kills 1 | . . 1 . . . Allies Corrupted . | . . . . . . Allies Melted . | . . . . . . Intel | -11 -10 -10 -10 -9 -8 ------- Run | Yrd Mat Min Exi Min Mat Active Infowar (turns) 2704 | . 60 794 532 461 857 Sensors 1275 | . . . . 418 857 Terrain 1429 | . 60 794 532 43 . Robot Analysis Total . | . . . . . . Derelict Logs Recovered 1 | . . 1 . . . Drone Launches . | . . . . . . Drone Recoveries . | . . . . . . Exploration | -11 -10 -10 -10 -9 -8 ------------- Run | Yrd Mat Min Exi Min Mat Turns Passed 3961 | 78 89 794 532 461 2007 Spaces Moved 2025 | 48 73 575 402 280 647 Core 34 | 17 . . . . 17 Treads 309 | . . . . . 309 Legs 1682 | 31 73 575 402 280 321 Wheels . | . . . . . . Hover . | . . . . . . Flight . | . . . . . . Fastest Speed 50 | 50 120 120 120 120 120 Average Speed 132 | 135 120 120 120 120 157 Slowest Speed 330 | 200 120 120 120 120 330 Overloaded Moves . | . . . . . . Propulsion Burnouts . | . . . . . . Robots Hopped . | . . . . . . Potential Cave-ins . | . . . . . . Cave-ins Triggered . | . . . . . . Exploration Rate (%) 47 | 5 11 81 88 49 48 Regions Visited 5 Branch Regions 3 Pre-discovered Areas . | . . . . . . Known Exits Taken . | . . . . . . Unknown Exits Taken 5 | 1 1 1 1 1 . Scrap Searched 3 | . . 2 . 1 . Spaces Dug . | . . . . . . Terrain Destroyed 25 | . . . . . 25 Melee . | . . . . . . Projectile 3 | . . . . . 3 AOE 22 | . . . . . 22 Terrain Rammed . | . . . . . . Walls Destroyed . | . . . . . . Machines Disabled . | . . . . . . Actions | -11 -10 -10 -10 -9 -8 --------- Run | Yrd Mat Min Exi Min Mat Total 3050 | 61 74 639 451 389 1436 Wait 708 | . . 36 50 92 530 Move 2020 | 47 72 574 401 279 647 Hop . | . . . . . . Pick Up 53 | 8 1 6 . 2 36 Fast Attach 6 | . . 1 . . 5 Attach 27 | 6 1 . . . 20 Detach . | . . . . . . Swap 33 | . . . . 3 30 Drop 33 | . . 2 . 4 27 Fire 169 | . . 20 . 9 140 Melee . | . . . . . . Ram . | . . . . . . Kick 1 | . . . . . 1 Crush . | . . . . . . Escape Stasis . | . . . . . . Rewire . | . . . . . . Trap . | . . . . . . Miscellaneous . | . . . . . . Route ------- -11/Scrapyard -10/Materials -10/Mines (discovered 3 exits: [*Mat x2] / *Exi) -10/Exiles -9/Mines -8/Materials History --------- Turn | Location | Event 10 | -11/Scrapyard | Discovered new exit (range 15) 79 | -11/Scrapyard | Entered Materials 93 | -10/Materials | Discovered new exit (range 16) 168 | -10/Materials | Entered Mines 298 | -10/Mines | Found a Scrap Suit stashed away for nefarious purposes 300 | -10/Mines | Build established: Mutant 300 | -10/Mines | Found Scrap Suit 537 | -10/Mines | Received a Rocket Launcher from a helpful Derelict 652 | -10/Mines | Discovered new exit (range 9) 850 | -10/Mines | Discovered new exit (range 5) 865 | -10/Mines | Deemed a non-threat by the Exiles lab entrance 865 | -10/Mines | Discovered new exit (range 5) 962 | -10/Mines | Entered Exiles 962 | -10/Exiles | Found Exiles lab abandoned 962 | -10/Exiles | Accompanied by 2 allies 992 | -10/Exiles | Led the pair of lost Derelicts to a safe place 1441 | -10/Exiles | Discovered new exit (range 14) 1494 | -10/Exiles | Entered Mines 1600 | -9/Mines | Assembled infested the area 1605 | -9/Mines | Assisted by a Guerilla fighting off Assembled 1934 | -9/Mines | Discovered new exit (range 15) 1955 | -9/Mines | Entered Materials 1955 | -8/Materials | Evolved 4 slots: Propulsion x2, Utility x2 2784 | -8/Materials | Lost 5 parts (1p2n2w) 2872 | -8/Materials | Lost 4 parts (1n2u1w) 2929 | -8/Materials | Core integrity fell below 50% 2971 | -8/Materials | Lost 4 parts (1n2u1w) 3249 | -8/Materials | Build established: Scavenger-Mutant 3616 | -8/Materials | Garrison activated, responded to threat 3663 | -8/Materials | Core integrity fell below 20% 3945 | -8/Materials | Garrison activated, responded to threat 3962 | -8/Materials | Destroyed by G-47 Trooper with Particle Gun Last Messages --------------- 5x Adv. Beam Rifle 03883_ K-01 Serf collects debris. 03924_ Dropped Imp. Heat Sink. 03924_ Acquired Lgt. Armor Plating. 03926_ K-01 Serf collects debris. 03937_ Connecting with Terminal... >>Alert(Check) Current Alert Level: 1-Z >>Alert(Purge) Purged threat record, alert level lowered. 03937_ ALERT: Suspicious activity at Terminal M004. Dispatching Investigation squad. 03944_ Acquired 8 matter. 03944_ A-02 Transporter sends out distress signal. 03945_ G-47 Trooper calls for garrison reinforcements. 03945_ ALERT: Activating Garrison Access M001. 03946_ Acquired 8 matter. 03946_ Critical hit (Burn: +37). Map ----- +----------------------------------------------------+ | | | | | | | | | | | | | | | | | | | | | | | | | ???????????????????????????#############?????????? | | ???????????????????????????# [#?????????? | | ???????????????????????????# """ #?????????? | | ???????????????# ??????????# """ #?????????? | | ???????????????# ?????????#"S """ ####??????? | | ???????????????? ????????#""" ##T######## | | ?????????????????? !???????# "" + | | ??????????????????? ??????# # | | ???????????##########/###########+###### | | ?????????? %! * [ = | | ?????????? [[%! [ = = | | ?????????? g =[ * =%* = | | ????????????????##########g######+#####!= ##### | | ?????????????????????# @ # =% # #???? | | ?????????????????????# """ [# """ "" *#! !#???? | | ?????????????????????# "T" # """ "" ##!!!!##???? | | ?????????????????????# # """[""]!#######????? | | ?????????????????????#! # ""[=" "*#??????????? | | ?????????????????????# ! ] # ""%%""!#??????????? | | ?????????????????????######## !!====* #??????????? | | ????????????????????????????# ==[= * =#??????????? | | ????????????????????????????#######/############## | | ??????????????????????????????????#=# ! + | | ??????????????????????????????????#*#""" # ##### | | ??????????????????????????????????#!#""" # #???? | | ??????????????????????????????????#%#""" ?# #???# | | ??????????????????????????????????# # ?# #???# | | ??????????????????????????????????# # ??# #???# | | ??????????????????????????????????# #####??# #???# | | ??????????????????????????????????#!#??????# #???# | | ??????????????????????????????????#%######## #???# | | ??????????????????????????????????#= #???# | | ??????????????????????????????????##########+##### | | ??????????????????????????????????????????# ## | | ??????????????????????????????????????????# """ ## | | ??????????????????????????????????????????# """ #? | | ??????????????????????????????????????????# """ #? | | ??????????????????????????????????????????# """ #? | +----------------------------------------------------+ Best States ------------- Heat Dissipation 59 Energy Generation 16 Energy Capacity 290 Matter Stores 300 Matter Capacity 300 Sight Range 16 Robot Scan Range 14 Terrain Scan Range 14 Terrain Scan Density 10 Additional Mass Support 6 Armor Coverage 600 Evasion (%) 55 Recoil Reduction 4 Item Schematics ----------------- Hpw. Shotgun | -8/Materials | Scanalyzed Imp. Heat Sink | -8/Materials | Scanalyzed Robot Schematics ------------------ None Fabricated ------------ Nothing Repaired ---------- Nothing Alien Tech Used ----------------- None Achievements -------------- None Challenges ------------ None Game ------ Seed ReinforcedLobotomyLauncher Manual? 0 Play Time 00:26:36 Cumulative 53.8 hours Start 2025.08.16 @ 19:14:08 End 2025.08.16 @ 19:41:58 Sessions 1 Manual Loads 0 Difficulty Rogue Special Mode None Game No. 39 Rogue 39 Adventurer 0 Explorer 0 Win Type - Total 1 Types 1/0/0/0/0/0/0/0/0/0 Lore% 49 Gallery% 41 Achievement% 35 Wizard Run 0 Options --------- Layout 1 ASCII 0 Keyboard 0 Movement Mouse Keybinds 0 Fullscreen 1 Font 24/Smallcaps Map View 50x35 Zoom Use 0% Tactical HUD 1 Map Filters NONE Filters NONE Steam 1 RUN: ce112aca-b0f4-4b72-8e09-68e3abd5113c